fUST/lending_fUST_20241205
["ID","MTS","AMOUNT","RATE_DAILY","PERIOD"]
[344306174,1733334650222,-574.89,0.00027123,7]
[344306175,1733334650232,-1230.63,0.00027123,7]
[344306176,1733334650242,-500.0,0.00027123,7]
[344306177,1733334650252,-500.0,0.00027123,7]
[344306178,1733334650261,-621.48,0.00027123,7]
[344306179,1733334650271,-500.0,0.00027123,7]
[344306180,1733334650282,-580.81,0.00027123,7]
[344306181,1733334650291,-500.0,0.00027123,7]
[344306182,1733334650301,-500.0,0.00027123,7]
[344306183,1733334650311,-500.0,0.00027123,7]
[344306184,1733334650321,-500.0,0.00027123,7]
[344306185,1733334650331,-564.44,0.00027123,7]
[344306186,1733334650341,-219.31334324,0.00027123,7]
[344306187,1733334650354,-500.0,0.00027123,7]
[344306188,1733334650364,-500.0,0.00027123,7]
[344306189,1733334650374,-500.0,0.00027123,7]
[344306190,1733334650383,-654.24,0.00027123,7]
[344306191,1733334650393,-500.0,0.00027123,7]
[344306192,1733334650403,-500.0,0.00027123,7]
[344306193,1733334650413,-500.0,0.00027123,7]
[344306194,1733334650422,-152.63742129,0.00027123,7]
[344306195,1733334650432,-1352.12,0.00027123,7]
[344306196,1733334650441,-500.0,0.00027123,7]
[344306197,1733334650451,-420.24979105,0.00027123,7]
[344306198,1733334650460,-500.0,0.00027123,7]
[344306199,1733334650470,-500.0,0.00027123,7]
[344306200,1733334650480,-2703.86,0.00027123,7]
[344306201,1733334650489,-500.0,0.00027123,7]
[344306202,1733334650499,-1126.44,0.00027123,7]
[344306203,1733334650511,-500.0,0.00027123,7]
[344306204,1733334650521,-500.0,0.00027123,7]
[344306205,1733334650530,-550.66,0.00027123,7]
[344306206,1733334650540,-1275.99,0.00027123,7]
[344306207,1733334650550,-526.39,0.00027123,7]
[344306208,1733334650560,-500.0,0.00027123,7]
[344306209,1733334650569,-789.05,0.00027123,7]
[344306210,1733334650579,-547.86,0.00027123,7]
[344306211,1733334650589,-933.92,0.00027123,7]
[344306212,1733334650601,-500.0,0.00027123,7]
[344306213,1733334650612,-591.06,0.00027123,7]
[344306214,1733334650622,-1813.04,0.00027123,7]
[344306215,1733334650632,-500.0,0.00027123,7]
[344306216,1733334650642,-506.93,0.00027123,7]
[344306217,1733334650651,-500.0,0.00027123,7]
[344306218,1733334650661,-500.0,0.00027123,7]
[344306219,1733334650670,-1598.25,0.00027123,7]
[344306220,1733334650680,-576.12,0.00027123,7]
[344306221,1733334650690,-500.0,0.00027123,7]
[344306222,1733334650700,-500.0,0.00027123,7]
[344306223,1733334650710,-500.0,0.00027123,7]
[344306224,1733334650721,-500.0,0.00027123,7]
[344306225,1733334650730,-728.12,0.00027123,7]
[344306226,1733334650740,-500.0,0.00027123,7]
[344306227,1733334650750,-566.61,0.00027123,7]
[344306228,1733334650760,-677.33,0.00027123,7]
[344306229,1733334650771,-500.0,0.00027123,7]
[344306230,1733334650781,-536.73,0.00027123,7]
[344306231,1733334650791,-699.21,0.00027123,7]
[344306232,1733334650801,-500.0,0.00027123,7]
[344306233,1733334650811,-505.55,0.00027123,7]
[344306234,1733334650821,-6570.32,0.00027123,7]
[344306235,1733334650832,-500.0,0.00027123,7]
[344306236,1733334650845,-679.43,0.00027123,7]
[344306237,1733334650855,-500.0,0.00027123,7]
[344306238,1733334650865,-6136.86,0.00027123,7]
[344306239,1733334650875,-587.0,0.00027203,2]
[344306240,1733334650884,-153.0,0.0002726,2]
[344306241,1733334650894,-153.0,0.0002726,2]
[344306242,1733334650904,-153.0,0.0002726,2]
[344306243,1733334650913,-153.0,0.0002726,2]
[344306244,1733334650923,-155.00015914,0.00027336,2]
[344306245,1733334650933,-500.0,0.00027397,7]
[344306246,1733334650942,-500.0,0.00027397,7]
[344306247,1733334650952,-500.0,0.00027397,7]
[344306248,1733334650962,-500.0,0.00027397,7]
[344306249,1733334650972,-795.19,0.00027397,7]
[344306250,1733334650984,-500.0,0.00027397,7]
[344306251,1733334650992,-594.09,0.00027397,7]
[344306252,1733334651003,-500.0,0.00027397,2]
[344306253,1733334651012,-500.0,0.00027397,7]
[344306254,1733334651021,-574.89,0.00027397,7]
[344306255,1733334651031,-1230.63,0.00027397,7]
[344306256,1733334651040,-500.0,0.00027397,7]
[344306257,1733334651051,-500.0,0.00027397,7]
[344306258,1733334651060,-500.0,0.00027397,7]
[344306259,1733334651069,-500.0,0.00027397,7]
[344306260,1733334651079,-500.0,0.00027397,7]
[344306261,1733334651089,-501.59416808,0.00027397,7]
[344306262,1733334651101,-500.0,0.00027397,7]
[344306263,1733334651111,-500.0,0.00027397,7]
[344306264,1733334651120,-621.48,0.00027397,7]
[344306265,1733334651130,-500.0,0.00027397,7]
[344306266,1733334651139,-580.81,0.00027397,7]
[344306267,1733334651149,-500.0,0.00027397,7]
[344306268,1733334651158,-500.0,0.00027397,7]
[344306269,1733334651168,-500.0,0.00027397,7]
[344306270,1733334651177,-372.34604293,0.00027397,7]
[344306271,1733334651187,-564.44,0.00027397,7]
[344306272,1733334651196,-500.0,0.00027397,7]
[344306273,1733334651206,-500.0,0.00027397,7]
[344306274,1733334651216,-500.0,0.00027397,7]
[344306275,1733334651225,-654.24,0.00027397,7]
[344306276,1733334651236,-500.0,0.00027397,7]
[344306277,1733334651247,-500.0,0.00027397,7]
[344306278,1733334651256,-500.0,0.00027397,7]
[344306279,1733334651265,-1352.12,0.00027397,7]
[344306280,1733334651275,-500.0,0.00027397,7]
[344306281,1733334651284,-437.07957373,0.00027397,7]
[344306282,1733334651294,-500.0,0.00027397,7]
[344306283,1733334651303,-2703.86,0.00027397,7]
[344306284,1733334651312,-500.0,0.00027397,7]
[344306285,1733334651322,-1126.44,0.00027397,7]
[344306286,1733334651332,-500.0,0.00027397,7]
[344306287,1733334651341,-550.66,0.00027397,7]
[344306288,1733334651356,-500.0,0.00027397,7]
[344306289,1733334651368,-1275.99,0.00027397,7]
[344306290,1733334651377,-526.39,0.00027397,7]
[344306291,1733334651387,-500.0,0.00027397,7]
[344306292,1733334651397,-789.05,0.00027397,7]
[344306293,1733334651406,-547.86,0.00027397,7]
[344306294,1733334651416,-933.92,0.00027397,7]
[344306295,1733334651426,-361.73166403,0.00027397,7]
[344306296,1733334651436,-591.06,0.00027397,7]
[344306297,1733334651445,-1813.04,0.00027397,7]
[344306298,1733334651455,-500.0,0.00027397,7]
[344306299,1733334651464,-506.93,0.00027397,7]
[344306300,1733334651473,-500.0,0.00027397,7]
[344306301,1733334651483,-154.84455624,0.00027397,7]
[344306302,1733334651493,-1598.25,0.00027397,7]
[344306303,1733334651503,-576.12,0.00027397,7]
[344306304,1733334651512,-500.0,0.00027397,7]
[344306305,1733334651522,-500.0,0.00027397,7]
[344306306,1733334651531,-500.0,0.00027397,7]
[344306307,1733334651541,-500.0,0.00027397,7]
[344306308,1733334651551,-728.12,0.00027397,7]
[344306309,1733334651561,-500.0,0.00027397,7]
[344306310,1733334651573,-566.61,0.00027397,7]
[344306311,1733334651583,-677.33,0.00027397,7]
[344306312,1733334651594,-429.6,0.00027397,7]
[344306313,1733334651605,-536.73,0.00027397,7]
[344306314,1733334651615,-699.21,0.00027397,7]
[344306315,1733334651625,-500.0,0.00027397,7]
[344306316,1733334651634,-505.55,0.00027397,7]
[344306317,1733334651646,-6570.32,0.00027397,7]
[344306318,1733334651655,-500.0,0.00027397,7]
[344306319,1733334651665,-679.43,0.00027397,7]
[344306320,1733334651674,-500.0,0.00027397,7]
[344306321,1733334651684,-6136.86,0.00027397,7]
[344306322,1733334651694,-153.0,0.00027407,2]
[344306323,1733334651704,-153.0,0.00027407,2]
[344306324,1733334651713,-153.0,0.00027407,2]
[344306325,1733334651723,-153.0,0.00027407,2]
[344306326,1733334651732,-153.0,0.00027407,2]
[344306327,1733334651742,-153.0,0.00027407,2]
[344306328,1733334651751,-153.0,0.00027407,2]
[344306329,1733334651761,-153.0,0.00027407,2]
[344306330,1733334651772,-153.0,0.00027407,2]
[344306331,1733334651781,-153.0,0.00027407,2]
[344306332,1733334651791,-33333.0,0.0002748,2]
[344306333,1733334651800,-3006.47795113,0.000275,2]
[344306334,1733334651810,-3007.5,0.000275,30]
[344306335,1733334651819,-150.08,0.000275,2]
[344306336,1733334651828,-494.171502,0.000275,24]
[344306337,1733334651838,-1000.0,0.00027521,5]
[344306338,1733334651850,-12000.0,0.0002757,2]
[344306339,1733334651859,-160.0,0.00027579,10]
[344306340,1733334651869,-150.01,0.00027579,2]
[344306341,1733334651878,-1478.71403095,0.00027579,2]
[344306342,1733334651888,-327.21687507,0.0002758,2]
[344306343,1733334651897,-51138.35700433,0.0002758,2]
[344306344,1733334651908,-541304.31770278,0.0002758,2]
[344306345,1733335011016,187.546208,0.00013973,2]
[344306358,1733335726523,268.037772,0.00013973,2]
[344306464,1733335838146,-268.037772,0.00020447,2]
[344306466,1733335838156,-168.224457,0.00023179,2]
[344306467,1733335838166,-300.0,0.00023206,2]
[344306469,1733335838177,-300.0,0.00023206,2]
[344306471,1733335838187,-24900.0,0.00023207,2]
[344306473,1733335838197,-250.0,0.00023231,2]
[344306475,1733335838207,-225.326649,0.00023562,2]
[344306476,1733335838216,-637.0395533,0.00023855,2]
[344306477,1733335838226,-171.683109,0.00023855,2]
[344306478,1733335838236,-1105.8111885,0.00024548,2]
[344306479,1733335838245,-262.4,0.00024647,3]
[344306480,1733335838255,-218.66,0.00024647,3]
[344306481,1733335838264,-656.02,0.00024647,3]
[344306482,1733335838275,-357.80100091,0.00024647,2]
[344306483,1733335838284,-500.0,0.00024647,2]
[344306484,1733335838294,-500.0,0.00024647,2]
[344306485,1733335838303,-500.0,0.00024647,2]
[344306486,1733335838315,-500.0,0.00024647,2]
[344306487,1733335838325,-500.0,0.00024647,2]
[344306488,1733335838335,-500.0,0.00024647,2]
[344306489,1733335838347,-500.0,0.00024647,2]
[344306490,1733335838357,-500.0,0.00024647,2]
[344306491,1733335838367,-500.0,0.00024647,2]
[344306492,1733335838376,-500.0,0.00024647,2]
[344306493,1733335838386,-500.0,0.00024647,2]
[344306494,1733335838409,-500.0,0.00024647,2]
[344306495,1733335838419,-500.0,0.00024647,2]
[344306496,1733335838429,-500.0,0.00024647,2]
[344306497,1733335838438,-500.0,0.00024647,2]
[344306498,1733335838448,-500.0,0.00024647,2]
[344306499,1733335838458,-500.0,0.00024647,2]
[344306500,1733335838468,-500.0,0.00024647,2]
[344306501,1733335838478,-500.0,0.00024647,2]
[344306502,1733335838488,-500.0,0.00024647,2]
[344306503,1733335838499,-500.0,0.00024647,2]
[344306504,1733335838510,-500.0,0.00024647,2]
[344306505,1733335838521,-500.0,0.00024647,2]
[344306506,1733335838532,-500.0,0.00024647,2]
[344306507,1733335838544,-500.0,0.00024647,2]
[344306508,1733335838554,-500.0,0.00024647,2]
[344306509,1733335838566,-500.0,0.00024647,2]
[344306510,1733335838576,-500.0,0.00024647,2]
[344306511,1733335838586,-500.0,0.00024647,2]
[344306512,1733335838596,-500.0,0.00024647,2]
[344306513,1733335838608,-500.0,0.00024647,2]
[344306514,1733335838620,-500.0,0.00024647,2]
[344306515,1733335838630,-500.0,0.00024647,2]
[344306516,1733335838640,-500.0,0.00024647,2]
[344306517,1733335838650,-500.0,0.00024647,2]
[344306518,1733335838659,-500.0,0.00024647,2]
[344306519,1733335838668,-500.0,0.00024647,2]
[344306520,1733335838678,-500.0,0.00024647,2]
[344306521,1733335838688,-500.0,0.00024647,2]
[344306522,1733335838698,-500.0,0.00024647,2]
[344306523,1733335838708,-500.0,0.00024647,2]
[344306524,1733335838719,-500.0,0.00024647,2]
[344306525,1733335838729,-500.0,0.00024647,2]
[344306526,1733335838739,-500.0,0.00024647,2]
[344306527,1733335838748,-500.0,0.00024647,2]
[344306528,1733335838758,-500.0,0.00024647,2]
[344306529,1733335838768,-500.0,0.00024647,2]
[344306530,1733335838778,-500.0,0.00024647,2]
[344306531,1733335838789,-500.0,0.00024647,2]
[344306532,1733335838799,-500.0,0.00024647,2]
[344306533,1733335838809,-473.03670562,0.00024647,2]
[344306534,1733335838819,-500.0,0.00024647,2]
[344306535,1733335838830,-500.0,0.00024647,2]
[344306536,1733335838840,-500.0,0.00024647,2]
[344306537,1733335838850,-500.0,0.00024647,2]
[344306538,1733335838864,-221.76781225,0.00024656,2]
[344306539,1733335838874,-518.78527956,0.00024657,7]
[344306540,1733335838884,-552.07,0.00024657,7]
[344306541,1733335838894,-526.73283209,0.00024657,7]
[344306542,1733335838904,-500.0,0.00024657,7]
[344306543,1733335838915,-500.0,0.00024657,7]
[344306544,1733335838925,-500.0,0.00024657,7]
[344306545,1733335838934,-500.0,0.00024657,7]
[344306546,1733335838944,-500.0,0.00024657,7]
[344306547,1733335838954,-500.0,0.00024657,7]
[344306548,1733335838963,-504.94576121,0.00024657,7]
[344306549,1733335838972,-500.0,0.00024657,7]
[344306550,1733335838982,-500.0,0.00024657,7]
[344306551,1733335838991,-500.0,0.00024657,7]
[344306552,1733335839001,-500.0,0.00024657,7]
[344306553,1733335839011,-500.0,0.00024657,7]
[344306554,1733335839021,-178.64611319,0.00024657,7]
[344306555,1733335839030,-500.0,0.00024657,7]
[344306556,1733335839040,-559.77824976,0.00024657,7]
[344306557,1733335839050,-500.0,0.00024657,7]
[344306558,1733335839060,-500.0,0.00024657,7]
[344306559,1733335839070,-500.0,0.00024657,7]
[344306560,1733335839081,-232.40022555,0.00024657,7]
[344306561,1733335839091,-200.0,0.00024657,7]
[344306562,1733335839101,-500.0,0.00024657,7]
[344306563,1733335839115,-500.0,0.00024657,7]
[344306564,1733335839124,-500.0,0.00024657,7]
[344306565,1733335839134,-500.0,0.00024657,7]
[344306566,1733335839144,-588.69,0.00024657,7]
[344306567,1733335839154,-500.0,0.00024657,7]
[344306568,1733335839163,-500.0,0.00024657,7]
[344306569,1733335839173,-500.0,0.00024657,7]
[344306570,1733335839184,-500.0,0.00024657,7]
[344306571,1733335839193,-500.0,0.00024657,7]
[344306572,1733335839203,-500.0,0.00024657,7]
[344306573,1733335839213,-500.0,0.00024657,7]
[344306574,1733335839222,-500.0,0.00024657,7]
[344306575,1733335839232,-576.69,0.00024657,7]
[344306576,1733335839242,-572.04,0.00024657,7]
[344306577,1733335839255,-715.39,0.00024657,7]
[344306578,1733335839264,-500.0,0.00024657,7]
[344306579,1733335839277,-500.0,0.00024657,7]
[344306580,1733335839287,-500.0,0.00024657,7]
[344306581,1733335839298,-500.0,0.00024657,7]
[344306582,1733335839309,-500.0,0.00024657,7]
[344306583,1733335839320,-500.0,0.00024657,7]
[344306584,1733335839330,-500.0,0.00024657,7]
[344306585,1733335839342,-500.0,0.00024657,7]
[344306586,1733335839352,-731.03,0.00024657,7]
[344306587,1733335839366,-564.28,0.00024657,7]
[344306588,1733335839377,-500.0,0.00024657,7]
[344306589,1733335839387,-264.24716709,0.00024657,7]
[344306590,1733335839397,-500.0,0.00024657,7]
[344306591,1733335839408,-500.0,0.00024657,7]
[344306592,1733335839418,-500.0,0.00024657,7]
[344306593,1733335839429,-500.0,0.00024657,7]
[344306594,1733335839439,-500.0,0.00024657,7]
[344306595,1733335839449,-500.0,0.00024657,7]
[344306596,1733335839459,-500.0,0.00024657,7]
[344306597,1733335839470,-200.0,0.00024657,7]
[344306598,1733335839480,-500.0,0.00024657,7]
[344306599,1733335839490,-500.0,0.00024657,7]
[344306600,1733335839501,-500.0,0.00024657,7]
[344306601,1733335839511,-317.53408063,0.00024657,7]
[344306602,1733335839521,-504.43934891,0.00024657,7]
[344306603,1733335839531,-500.0,0.00024657,7]
[344306604,1733335839541,-500.0,0.00024657,7]
[344306605,1733335839551,-500.0,0.00024657,7]
[344306606,1733335839560,-500.0,0.00024657,7]
[344306607,1733335839570,-539.85,0.00024657,7]
[344306608,1733335839580,-511.89521202,0.00024657,7]
[344306609,1733335839590,-500.0,0.00024657,7]
[344306610,1733335839599,-1472.45,0.00024657,7]
[344306611,1733335839611,-500.0,0.00024657,7]
[344306612,1733335839620,-500.0,0.00024657,7]
[344306614,1733335839630,-500.0,0.00024657,7]
[344306616,1733335839640,-500.0,0.00024657,7]
[344306617,1733335839650,-506.18436438,0.00024657,7]
[344306618,1733335839660,-587.17,0.00024657,7]
[344306619,1733335839670,-500.0,0.00024657,7]
[344306620,1733335839680,-500.0,0.00024657,7]
[344306621,1733335839690,-500.0,0.00024657,7]
[344306622,1733335839700,-591.54,0.00024657,7]
[344306623,1733335839709,-500.0,0.00024657,7]
[344306624,1733335839719,-578.77,0.00024657,7]
[344306625,1733335839729,-500.0,0.00024657,7]
[344306627,1733335839739,-488.60865316,0.00024657,7]
[344306630,1733335839756,-11.39134684,0.00024657,7]
[344306632,1733335839766,-500.0,0.00024657,7]
[344306634,1733335839775,-500.0,0.00024657,7]
[344306635,1733335839784,-500.0,0.00024657,7]
[344306636,1733335839794,-497.13798098,0.00024657,7]
[344306637,1733335839806,-2.86201902,0.00024657,7]
[344306638,1733335839816,-500.0,0.00024657,7]
[344306640,1733335839826,-500.0,0.00024657,7]
[344306642,1733335839835,-500.0,0.00024657,7]
[344306644,1733335839846,-500.0,0.00024657,7]
[344306646,1733335839855,-500.0,0.00024657,7]
[344306647,1733335839868,-500.0,0.00024657,7]
[344306648,1733335839878,-500.0,0.00024657,7]
[344306649,1733335839887,-500.0,0.00024657,7]
[344306650,1733335839897,-500.0,0.00024657,7]
[344306652,1733335839907,-500.0,0.00024657,7]
[344306653,1733335839917,-500.0,0.00024657,7]
[344306654,1733335839926,-500.0,0.00024657,7]
[344306655,1733335839936,-500.0,0.00024657,7]
[344306656,1733335839946,-631.02282396,0.00024657,7]
[344306657,1733335839956,-500.0,0.00024657,7]
[344306658,1733335839965,-500.0,0.00024657,7]
[344306659,1733335839975,-500.0,0.00024657,7]
[344306660,1733335839985,-500.0,0.00024657,7]
[344306662,1733335839996,-500.0,0.00024657,7]
[344306663,1733335840006,-500.0,0.00024657,7]
[344306664,1733335840015,-500.0,0.00024657,7]
[344306665,1733335840025,-500.0,0.00024657,7]
[344306666,1733335840035,-500.0,0.00024657,7]
[344306667,1733335840044,-500.0,0.00024657,7]
[344306668,1733335840054,-1169.88,0.00024657,7]
[344306669,1733335840064,-500.0,0.00024657,2]
[344306671,1733335840075,-500.0,0.00024657,7]
[344306673,1733335840085,-500.0,0.00024657,7]
[344306675,1733335840095,-500.0,0.00024657,7]
[344306677,1733335840104,-500.0,0.00024657,7]
[344306678,1733335840116,-500.0,0.00024657,7]
[344306680,1733335840126,-500.0,0.00024657,7]
[344306682,1733335840136,-500.0,0.00024657,7]
[344306683,1733335840146,-500.0,0.00024657,7]
[344306685,1733335840156,-500.0,0.00024657,7]
[344306688,1733335840332,-500.0,0.00024657,7]
[344306689,1733335840343,-500.0,0.00024657,7]
[344306690,1733335840353,-500.0,0.00024657,7]
[344306691,1733335840367,-1993.14,0.00024657,7]
[344306692,1733335840376,-500.0,0.00024657,7]
[344306693,1733335840386,-500.0,0.00024657,7]
[344306694,1733335840398,-500.0,0.00024657,7]
[344306695,1733335840408,-500.0,0.00024657,7]
[344306696,1733335840418,-500.0,0.00024657,7]
[344306697,1733335840427,-500.0,0.00024657,7]
[344306698,1733335840437,-190.77276469,0.00024657,7]
[344306699,1733335840447,-500.0,0.00024657,7]
[344306700,1733335840457,-500.0,0.00024657,7]
[344306701,1733335840471,-500.0,0.00024657,7]
[344306702,1733335840481,-501.59241138,0.00024657,7]
[344306703,1733335840491,-500.0,0.00024657,7]
[344306704,1733335840502,-500.0,0.00024657,7]
[344306705,1733335840512,-500.0,0.00024657,7]
[344306706,1733335840522,-500.0,0.00024657,7]
[344306707,1733335840533,-500.0,0.00024657,7]
[344306708,1733335840544,-500.0,0.00024657,7]
[344306709,1733335840554,-3095.31,0.00024657,7]
[344306710,1733335840563,-500.0,0.00024657,7]
[344306711,1733335840589,-500.0,0.00024657,7]
[344306712,1733335840601,-500.0,0.00024657,7]
[344306713,1733335840616,-500.0,0.00024657,7]
[344306714,1733335840630,-523.72650331,0.00024657,7]
[344306715,1733335840640,-438.91092585,0.00024657,7]
[344306716,1733335840650,-509.36,0.00024657,7]
[344306717,1733335840660,-500.0,0.00024657,7]
[344306718,1733335840671,-500.0,0.00024657,7]
[344306719,1733335840681,-500.0,0.00024657,7]
[344306720,1733335840692,-500.0,0.00024657,7]
[344306721,1733335840702,-425.71584422,0.00024657,7]
[344306722,1733335840712,-500.0,0.00024657,7]
[344306723,1733335840722,-500.0,0.00024657,7]
[344306724,1733335840732,-500.0,0.00024657,7]
[344306725,1733335840743,-500.0,0.00024657,7]
[344306726,1733335840754,-500.0,0.00024657,7]
[344306727,1733335840764,-500.0,0.00024657,7]
[344306728,1733335840774,-500.0,0.00024657,7]
[344306729,1733335840785,-500.0,0.00024657,7]
[344306730,1733335840795,-500.0,0.00024657,7]
[344306731,1733335840805,-1008.24,0.00024657,7]
[344306732,1733335840815,-500.0,0.00024657,7]
[344306733,1733335840825,-752.54,0.00024657,7]
[344306734,1733335840835,-500.0,0.00024657,7]
[344306735,1733335840846,-1219.18,0.00024657,7]
[344306736,1733335840857,-500.0,0.00024657,7]
[344306737,1733335840870,-500.0,0.00024657,7]
[344306738,1733335840881,-529.55,0.00024657,7]
[344306739,1733335840891,-500.0,0.00024657,7]
[344306740,1733335840902,-500.0,0.00024657,7]
[344306741,1733335840913,-717.25,0.00024657,7]
[344306742,1733335840923,-500.0,0.00024657,7]
[344306743,1733335840932,-500.0,0.00024657,7]
[344306744,1733335840943,-2233.13,0.00024657,7]
[344306745,1733335840953,-510.69278094,0.00024657,7]
[344306746,1733335840962,-500.0,0.00024657,7]
[344306747,1733335840972,-500.0,0.00024657,7]
[344306748,1733335840983,-483.36294289,0.00024657,7]
[344306749,1733335840993,-597.45,0.00024657,7]
[344306750,1733335841003,-500.0,0.00024657,7]
[344306751,1733335841013,-500.0,0.00024657,7]
[344306752,1733335841024,-160.51209693,0.00024657,7]
[344306753,1733335841035,-500.0,0.00024657,7]
[344306754,1733335841046,-500.0,0.00024657,7]
[344306755,1733335841055,-500.0,0.00024657,7]
[344306756,1733335841066,-500.0,0.00024657,7]
[344306757,1733335841076,-933.23,0.00024657,7]
[344306758,1733335841086,-1605.0,0.00024657,7]
[344306759,1733335841096,-500.0,0.00024657,7]
[344306760,1733335841106,-500.0,0.00024657,7]
[344306761,1733335841118,-571.72,0.00024657,7]
[344306762,1733335841127,-297.92549539,0.00024657,7]
[344306763,1733335841137,-500.0,0.00024657,7]
[344306764,1733335841147,-500.0,0.00024657,7]
[344306765,1733335841157,-500.0,0.00024657,7]
[344306766,1733335841166,-723.72,0.00024657,7]
[344306767,1733335841176,-536.56,0.00024657,7]
[344306768,1733335841187,-500.0,0.00024657,7]
[344306769,1733335841197,-501.88024791,0.00024657,7]
[344306770,1733335841207,-572.72,0.00024657,7]
[344306771,1733335841218,-500.0,0.00024657,7]
[344306772,1733335841230,-500.0,0.00024657,7]
[344306773,1733335841240,-500.0,0.00024657,7]
[344306774,1733335841249,-500.0,0.00024657,7]
[344306775,1733335841259,-500.0,0.00024657,7]
[344306776,1733335841269,-384.97651018,0.00024657,7]
[344306777,1733335841279,-500.0,0.00024657,7]
[344306778,1733335841288,-500.0,0.00024657,7]
[344306779,1733335841298,-500.0,0.00024657,7]
[344306780,1733335841308,-672.16,0.00024657,7]
[344306781,1733335841318,-9309.73,0.00024657,7]
[344306782,1733335841331,-697.38,0.00024657,7]
[344306783,1733335841340,-500.0,0.00024657,7]
[344306784,1733335841350,-500.0,0.00024657,7]
[344306785,1733335841364,-500.0,0.00024657,7]
[344306786,1733335841373,-500.0,0.00024657,7]
[344306787,1733335841383,-500.0,0.00024657,7]
[344306788,1733335841393,-500.0,0.00024657,7]
[344306789,1733335841405,-500.0,0.00024657,7]
[344306790,1733335841416,-500.0,0.00024657,7]
[344306791,1733335841427,-500.0,0.00024657,7]
[344306792,1733335841437,-500.0,0.00024657,7]
[344306793,1733335841447,-500.0,0.00024657,7]
[344306794,1733335841457,-502.21234256,0.00024657,7]
[344306795,1733335841467,-500.0,0.00024673,2]
[344306796,1733335841477,-33333.0,0.00024831,2]
[344306797,1733335841487,-666.0,0.00024831,2]
[344306798,1733335841497,-552.07,0.00024931,7]
[344306799,1733335841507,-500.0,0.00024931,7]
[344306800,1733335841516,-500.0,0.00024931,7]
[344306801,1733335841525,-500.0,0.00024931,7]
[344306802,1733335841536,-500.0,0.00024931,7]
[344306803,1733335841547,-500.0,0.00024931,7]
[344306804,1733335841557,-197.60593461,0.00024931,7]
[344306805,1733335841567,-500.0,0.00024931,7]
[344306806,1733335841577,-588.69,0.00024931,7]
[344306807,1733335841587,-500.0,0.00024931,7]
[344306808,1733335841597,-500.0,0.00024931,7]
[344306809,1733335841613,-500.0,0.00024931,7]
[344306810,1733335841623,-638.57702075,0.00024931,7]
[344306811,1733335841632,-576.69,0.00024931,7]
[344306812,1733335841642,-572.04,0.00024931,7]
[344306813,1733335841652,-715.39,0.00024931,7]
[344306814,1733335841661,-562.89558728,0.00024931,7]
[344306815,1733335841671,-500.0,0.00024931,7]
[344306816,1733335841680,-500.0,0.00024931,7]
[344306817,1733335841690,-501.71384872,0.00024931,7]